[Event "50th La Roda Open 2024"]
[Site "La Roda"]
[Date "2024.03.29"]
[Round "5.3"]
[White "Sonis, Francesco"]
[Black "Karthik Venkataraman"]
[Result "1-0"]
[ECO "A30"]
[WhiteElo "2562"]
[BlackElo "2609"]
[Annotator "TA"]
[PlyCount "149"]
[EventDate "2024.03.27"]
[EventType "swiss"]
[EventCountry "ESP"]
[SourceTitle "playchess.com"]
[Source "ChessBase"]
[SourceQuality "1"]
[TimeControl "5400+30"]

{[%evp 82,149,311,316,354,336,325,312,309,297,304,293,293,254,426,445,439,418,429,409,869,846,1724,782,784,769,1105,1047,834,715,970,918,755,796,808,773,1665,1610,29976,29977,5522,908,866,723,685,488,488,481,1121,1164,833,766,2628,2620,29965,29950,29962,29963,29964,29959,29971,29972,29971,29971,29978,29979,29979,29980,29977,29978]} 1. Nf3 {[%emt 0:00:03]} Nf6 {[%emt 0:00:30]} 2. c4 {[%emt 0:00:23]} b6 {[%emt 0:00:11]} 3. g3 {[%emt 0:00:05]} c5 {[%emt 0:00:11]} 4. Bg2 {[%emt 0:00:05]} Bb7 {[%emt 0:00:05]} 5. O-O {[%emt 0:00:04]} e6 {[%emt 0:00:06]} 6. Nc3 {[%emt 0:00:03]} Be7 {[%emt 0:00:10]} 7. Re1 {[%emt 0:00:08]} d6 {[%emt 0:00:07]} 8. e4 {[%emt 0:00:03]} Nc6 {[%emt 0:00:04]} 9. d4 {[%emt 0:00:12]} e5 {[%emt 0:00:11]} 10. dxe5 {[%emt 0:03:15]} dxe5 {[%emt 0:00:12]} 11. Nd5 {[%emt 0:00:05]} O-O {[%emt 0:00:05]} 12. Bg5 {[%emt 0:04:11]} Re8 {[%emt 0:04:51]} 13. Qa4 {[%emt 0:12:07]} Nd7 {[%emt 0:24:26]} 14. Nxe7+ {[%emt 0:21:23]} Nxe7 {[%emt 0:00:17]} 15. Rad1 {[%emt 0:00:13]} Bc6 {[%emt 0:00:16]} 16. Qc2 {[%emt 0:00:10]} Qc7 {[%emt 0:00:54]} 17. Nd2 {[%emt 0:01:08]} Nf8 {[%emt 0:00:36]} 18. Nb1 {[%emt 0:04:43]} Ne6 {[%emt 0:00:09]} 19. Be3 {[%emt 0:00:03]} Nd4 {[%emt 0:00:26]} 20. Qc1 {[%emt 0:00:19]} Qc8 {[%emt 0:08:19]} 21. Nc3 {[%emt 0:02:16]} Bd7 {[%emt 0:00:32]} 22. f3 {[%emt 0:04:38]} Qb7 {[%emt 0:02:21]} 23. Rd2 {[%emt 0:02:51]} Rac8 {[%emt 0:08:05]} 24. Qd1 {[%emt 0:00:38]} h6 {[%emt 0:01:20]} 25. f4 {[%emt 0:01:36]} Rcd8 {[%emt 0:04:48]} 26. f5 {[%emt 0:06:10]} Qc6 {[%emt 0:04:46]} 27. Qh5 {[%emt 0:03:49]} Bc8 {[%emt 0:00:30]} 28. g4 {[%emt 0:00:30]} Rd6 {[%emt 0:00:30]} 29. Rf2 {[%emt 0:11:51]} Ba6 30. Bf1 {[%emt 0:22:28]} Red8 {[%emt 0:40:32]} 31. g5 {[%emt 0:00:00]} hxg5 {[%emt 0:00:00]} 32. Bxg5 {[%emt 0:00:00]} f6 {[%emt 0:00:00]} 33. Bh6 {[%emt 0:00:00]} Qe8 {[%emt 0:00:00]} 34. Qg4 {[%emt 0:00:00]} Qf7 {[%emt 0:00:00]} 35. Rg2 {[%emt 0:00:00]} Kf8 {[%emt 0:00:00]} 36. Bxg7+ {[%emt 0:00:00]} Ke8 {[%emt 0:00:00]} 37. b3 {[%emt 0:00:00]} Kd7 {[%emt 0:00:00]} 38. h4 {[%emt 0:00:00]} Rg8 {[%emt 0:00:00]} 39. h5 {[%emt 0:00:00]} Nf3+ {[%emt 0:00:00]} 40. Qxf3 {[%emt 0:00:00]} Rxg7 {[%emt 0:00:00]} 41. Rg6 {[%emt 0:00:00]} Rh7 {[%emt 0:00:00]} (41... Nxg6 42. fxg6 Qg8 43. Rd1 $18) 42. Nd5 {[%emt 0:00:00]} Qf8 {[%emt 0:00:00]} 43. Rd1 {[%emt 0:00:00]} Nxd5 {[%emt 0:00:00]} 44. exd5 {[%emt 0:00:00]} Kc7 {[%emt 0:00:00]} 45. Be2 {[%emt 0:00:00]} Bc8 {[%emt 0:00:00]} 46. Kf2 {[%emt 0:00:22]} Rdd7 {[%emt 0:00:00]} 47. Rdg1 {[%emt 0:00:52]} Rdf7 $2 {[%emt 0:00:00]} (47... Rh8 48. Qe4 Rdh7 49. d6+ Qxd6) 48. Rg8 $18 {[%emt 0:01:39]} Qd6 {[%emt 0:00:00]} 49. Qe4 {[%emt 0:00:20]} Bd7 {[%emt 0:04:09]} 50. R1g6 {[%emt 0:01:12]} Qe7 {[%emt 0:00:25]} (50... Rf8 $142 51. R8g7 Rxg7) 51. Ra8 $18 {[%emt 0:02:07]} Kd6 {[%emt 0:00:04]} 52. Rxa7 {[%emt 0:00:21]} (52. Rgg8 $142 Bb5 53. cxb5) 52... Qd8 $18 {[%emt 0:00:04]} 53. Rb7 {[%emt 0:00:49]} Rf8 {[%emt 0:01:34]} 54. Bf3 {[%emt 0:01:31]} Rhf7 {[%emt 0:01:53]} 55. b4 {[%emt 0:00:53]} Bc8 {[%emt 0:00:33]} 56. Rxf7 {[%emt 0:00:07]} Rxf7 {[%emt 0:00:00]} 57. Qb1 {[%emt 0:01:16]} Qc7 {[%emt 0:00:26]} 58. Be4 {[%emt 0:00:11]} Qa7 {[%emt 0:01:21]} 59. bxc5+ {[%emt 0:01:52]} Kxc5 {[%emt 0:00:27]} 60. Qb5+ {[%emt 0:00:19]} Kd4 {[%emt 0:00:01]} 61. Bb1 {[%emt 0:00:47]} (61. Rg4 $142 Rg7 62. Qb2+ Kc5 63. Rxg7 Qxg7 64. Qa3+ Kd4 65. Qe3+ Kxc4 66. Bd3+ (66. Qxb6 Qg4 $18) (66. Qb3+ Kc5 $18) 66... Kxd5 67. Be4+ (67. Qxb6 Bd7 $18) 67... Kc4 68. Qb3+ (68. Qxb6 Qg4 $18) 68... Kc5 69. Qc3+ Kd6 70. Qa3+ (70. Qxc8 Qh6 $18) 70... Kc7 71. Qa7+ Kd6 72. Qxg7) 61... e4 $18 {[%emt 0:00:41]} 62. d6 {[%emt 0:00:23]} Qa5 {[%emt 0:00:50]} 63. Qxa5 {[%emt 0:00:55]} bxa5 {[%emt 0:00:01]} 64. h6 {[%emt 0:00:21]} Rb7 {[%emt 0:01:16]} (64... Rh7 $142 65. c5 (65. Rxf6 Ke5 $18) 65... Kxc5) 65. Bxe4 $18 {[%emt 0:00:38]} Kxe4 {[%emt 0:00:10]} 66. Rg7 {[%emt 0:00:02]} ({Not} 66. Rxf6 Bxf5 67. c5 Ke5 $11) 66... Rb2+ {[%emt 0:00:13]} 67. Kg3 {[%emt 0:00:06]} Bxf5 {[%emt 0:00:23]} 68. Re7+ {[%emt 0:00:04]} Kd4 {[%emt 0:00:44]} 69. d7 {[%emt 0:00:03]} Bxd7 {[%emt 0:00:19]} 70. Rxd7+ {[%emt 0:00:09]} Kxc4 {[%emt 0:00:03]} 71. h7 {[%emt 0:00:47]} Rb8 {[%emt 0:00:01]} 72. Kf4 {[%emt 0:00:11]} a4 {[%emt 0:03:38]} 73. Rd2 {[%emt 0:00:22]} Rh8 {[%emt 0:01:19]} 74. Rh2 {[%emt 0:00:08]} Kb4 {[%emt 0:00:30]} 75. Rh3 {[%emt 0:00:03]} 1-0

[Event "50th La Roda Open 2024"]
[Site "La Roda"]
[Date "2024.03.29"]
[Round "5.4"]
[White "Iturrizaga Bonelli, Eduardo"]
[Black "Ponce Navalon, Jose"]
[Result "1-0"]
[ECO "E11"]
[WhiteElo "2588"]
[BlackElo "2141"]
[Annotator "RC"]
[PlyCount "79"]
[EventDate "2024.03.27"]
[EventType "swiss"]
[EventCountry "ESP"]
[SourceTitle "playchess.com"]
[Source "ChessBase"]
[SourceQuality "1"]
[TimeControl "5400+30"]

1. c4 {[%emt 0:04:22]} e6 {[%emt 0:00:24]} 2. Nf3 {[%emt 0:00:41]} d5 {[%emt 0:01:52]} 3. d4 {[%emt 0:00:10]} Nf6 {[%emt 0:00:58]} 4. g3 {[%emt 0:00:15]} Bb4+ {[%emt 0:02:42]} 5. Bd2 {[%emt 0:00:09]} a5 {[%emt 0:01:44]} 6. Bg2 {[%emt 0:00:07]} O-O {[%emt 0:00:27]} 7. Qc2 {[%emt 0:04:44]} Nc6 {[%emt 0:03:33]} 8. O-O {[%emt 0:01:06]} dxc4 {[%emt 0:04:31]} 9. Qxc4 {[%emt 0:13:40]} Qd5 {[%emt 0:03:27]} 10. Rc1 {[%emt 0:16:58]} Qxc4 {[%emt 0:21:46]} 11. Rxc4 {[%emt 0:00:25]} Nd5 {[%emt 0:00:07]} 12. a3 {[%emt 0:04:55]} Bd6 {[%emt 0:02:33]} 13. Rc2 {[%emt 0:03:26]} Nb6 {[%emt 0:05:50]} 14. Bc3 {[%emt 0:06:20]} a4 {[%emt 0:02:04]} 15. Nbd2 {[%emt 0:00:15]} Na5 {[%emt 0:02:26]} 16. Ne5 {[%emt 0:02:13]} Nb3 {[%emt 0:09:42]} 17. Nxb3 {[%emt 0:01:49]} axb3 {[%emt 0:00:05]} 18. Rcc1 {[%emt 0:01:18]} Na4 {[%emt 0:03:30]} 19. Nd3 {[%emt 0:37:07]} Ra6 20. e3 Ra7 21. Bb4 Bd7 22. Nc5 Bxc5 23. Bxc5 Nxc5 24. Rxc5 {[%emt 0:00:00]} b6 {[%emt 0:34:49]} 25. Rc3 {[%emt 0:00:00]} Ba4 {[%emt 0:00:00]} 26. Rac1 {[%emt 0:00:00]} Rc8 {[%emt 0:00:00]} 27. Bc6 {[%emt 0:00:00]} b5 {[%emt 0:00:00]} 28. Rc5 {[%emt 0:00:00]} Rb8 {[%emt 0:00:00]} 29. Bf3 {[%emt 0:00:00]} b4 {[%emt 0:00:00]} 30. axb4 {[%emt 0:00:00]} Rxb4 {[%emt 0:00:00]} 31. Rxc7 {[%emt 0:00:00]} Rxc7 {[%emt 0:00:00]} 32. Rxc7 {[%emt 0:00:00]} Kf8 {[%emt 0:00:00]} 33. Kf1 {[%emt 0:00:00]} Bb5+ {[%emt 0:00:00]} 34. Be2 {[%emt 0:00:00]} Be8 {[%emt 0:00:00]} 35. Ra7 {[%emt 0:00:00]} f6 {[%emt 0:00:00]} 36. Ra5 {[%emt 0:00:00]} Ke7 {[%emt 0:00:00]} 37. Ke1 {[%emt 0:00:00]} f5 {[%emt 0:03:34]} 38. Kd2 {[%emt 0:00:00]} g5 {[%emt 0:00:09]} 39. Kc3 {[%emt 0:00:00]} Rb6 {[%emt 0:00:01]} 40. Bc4 {[%emt 0:00:00]} 1-0

[Event "50th La Roda Open 2024"]
[Site "La Roda"]
[Date "2024.03.29"]
[Round "5.5"]
[White "Admiraal, Miguoel"]
[Black "Albornoz Cabrera, Carlos Daniel"]
[Result "1/2-1/2"]
[ECO "B22"]
[WhiteElo "2471"]
[BlackElo "2603"]
[Annotator "TA"]
[PlyCount "61"]
[EventDate "2024.03.27"]
[EventType "swiss"]
[EventCountry "ESP"]
[SourceTitle "playchess.com"]
[Source "ChessBase"]
[SourceQuality "1"]
[TimeControl "5400+30"]

{[%evp 14,61,0,0,18,0,3,0,9,0,-6,0,0,16,2,0,-6,0,0,0,7,-20,-11,-37,-36,-40,-40,-40,-39,-48,-35,-36,-22,-21,-20,-16,-18,-12,-18,-13,-13,-12,0,0,0,0,0,0,0,0]} 1. e4 {[%emt 0:00:12][%cal Be2e4,Be4e5][%mdl 32]} c5 {[%emt 0:00:06]} 2. c3 {[%emt 0:00:22]} Nf6 {[%emt 0:00:04]} 3. e5 {[%emt 0:00:07]} Nd5 {[%emt 0:00:03]} 4. d4 {[%emt 0:00:24]} cxd4 {[%emt 0:00:07]} 5. Nf3 {[%emt 0:00:18]} d6 {[%emt 0:01:24]} 6. cxd4 {[%emt 0:00:11]} Nc6 {[%emt 0:00:27]} 7. Bc4 {[%emt 0:00:22]} dxe5 {[%emt 0:00:42]} 8. dxe5 {[%emt 0:00:29]} Be6 {[%emt 0:00:05]} 9. Qe2 {[%emt 0:17:30] Dodges Ne3} g6 {[%emt 0:00:38]} 10. Ng5 {[%emt 0:03:56]} Bg7 {[%emt 0:01:19]} 11. Nxe6 {[%emt 0:00:12]} fxe6 {[%emt 0:00:03]} 12. O-O {[%emt 0:12:12]} Qa5 {[%emt 0:03:38] Prevents Nc3.} 13. Nd2 {[%emt 0:05:16]} Nf4 {[%emt 0:29:35] Excellent horsemanship.} 14. Qg4 {[%emt 0:05:05][%csl LRe6,LRf4]} Rf8 {[%emt 0:00:50]} 15. Nf3 {[%emt 0:11:19]} (15. Bxe6 $2 {loses.} Nxe5 (15... Bxe5 $2 {too greedy.} 16. Bd7+ Kd8 17. Nc4 $18) 16. Qh4 Nxe6 $19) 15... Nxe5 {[%emt 0:02:23]} 16. Nxe5 {[%emt 0:00:27]} Qxe5 {[%emt 0:00:14]} 17. Bd2 {[%emt 0:15:33]} Qf5 {[%emt 0:05:22]} (17... Rd8 {is more complex.} 18. Rad1 Rf5 19. Bxf4 Rxf4 20. Rxd8+ Kxd8 21. Qd1+ Ke8) 18. Qxf4 {[%emt 0:03:31]} Qxf4 {[%emt 0:01:10]} 19. Bxf4 {[%emt 0:00:05]} Rxf4 {[%emt 0:00:04]} 20. Bxe6 {[%emt 0:02:09]} Bxb2 {[%emt 0:05:46]} 21. Rab1 {[%emt 0:00:30]} Rb4 {[%emt 0:00:30]} 22. Rfd1 {[%emt 0:00:30]} Rb6 {[%emt 0:00:30]} 23. Bb3 {[%emt 0:00:30] The position is equal.} Be5 {[%emt 0:00:30]} 24. Ba4+ {[%emt 0:00:30]} Kf8 {[%emt 0:00:30]} 25. Rxb6 {[%emt 0:00:30]} axb6 $11 {[%emt 0:00:30][%mdl 4096] Endgame. KRB-KRB} 26. Bb3 {[%emt 0:00:30]} Rc8 {[%emt 0:00:30]} 27. g3 {[%emt 0:00:30]} Kg7 {[%emt 0:00:30]} 28. Rd7 {[%emt 0:00:30][%csl LRb7,LRe7]} Bd6 {[%emt 0:10:17]} 29. Rxb7 {[%emt 0:07:11]} Bc5 {[%emt 0:03:16]} 30. Rd7 {[%emt 0:00:24]} Rf8 {[%emt 0:00:07]} 31. Rd2 {[%emt 0:00:09] Weighted Error Value: White=0.05 (flawless) /Black=0.04 (flawless) .  Inaccurate:     	White=2     	---        OK:         	White=13    	Black=8      Best:        	White=1     	---} 1/2-1/2

[Event "50th La Roda Open 2024"]
[Site "La Roda"]
[Date "2024.03.29"]
[Round "5.6"]
[White "Elias Reyes, Jorge Roberto"]
[Black "Jarque Megias, Juan Jose"]
[Result "1-0"]
[ECO "B92"]
[WhiteElo "2473"]
[BlackElo "2048"]
[Annotator "TA"]
[PlyCount "115"]
[EventDate "2024.03.27"]
[EventType "swiss"]
[EventCountry "ESP"]
[SourceTitle "playchess.com"]
[Source "ChessBase"]
[SourceQuality "1"]
[TimeControl "5400+30"]

{[%evp 16,115,20,-7,13,10,29,22,62,6,95,100,102,103,83,64,70,77,141,131,129,133,123,88,199,188,645,577,554,535,535,356,339,331,336,341,343,287,288,287,277,278,271,278,290,276,302,265,261,176,197,166,283,248,278,264,269,244,279,224,230,225,235,250,239,197,211,212,199,174,174,174,226,226,226,226,279,274,573,571,519,511,544,544,534,431,522,508,587,587,587,587,579,579,579,462,1305,1175,5519,5248,29985,29985]} 1. e4 {[%emt 0:01:37]} c5 {[%emt 0:00:07]} 2. Nf3 {[%emt 0:00:06]} d6 {[%emt 0:00:03]} 3. d4 {[%emt 0:00:05]} cxd4 {[%emt 0:00:04]} 4. Nxd4 {[%emt 0:00:03]} Nf6 {[%emt 0:00:04]} 5. Nc3 {[%emt 0:00:04]} a6 {[%emt 0:00:06]} 6. Be2 {[%emt 0:00:03]} e5 {[%emt 0:00:48]} 7. Nb3 {[%emt 0:00:06]} Be7 {[%emt 0:00:32]} 8. Be3 {[%emt 0:00:05]} Be6 {[%emt 0:00:46]} 9. Nd5 {[%emt 0:00:05]} Bxd5 {[%emt 0:03:54]} 10. exd5 {[%emt 0:00:06]} O-O {[%emt 0:00:41]} 11. g4 {[%emt 0:00:02][%cal Bg2g4,Bg4g5][%mdl 32]} Nbd7 {[%emt 0:02:58] The position is equal.} 12. Qd3 {[%emt 0:05:13]} (12. h4 $14) 12... b5 {[%emt 0:02:52] [#]} (12... Nb6 $1 $11) 13. g5 $1 $16 {[%emt 0:02:04]} Ne8 {[%emt 0:00:17]} 14. h4 $36 {[%emt 0:00:02][%cal Bh2h4,Bh4h5,Bh5g6,Bg6h7][%mdl 2080] Keeping Black busy.} Nc5 {[%emt 0:05:04]} 15. Nxc5 {[%emt 0:02:37]} dxc5 {[%emt 0:00:58]} 16. Qf5 {[%emt 0:01:14]} Qd6 {[%emt 0:07:31]} ({Better is} 16... Bd6) 17. O-O-O {[%emt 0:15:34] h5 would now be deadly.} c4 {[%emt 0:02:30][%cal Oc4c3]} 18. h5 {[%emt 0:12:07] aiming for Bf3. White has more active pieces. The black rooks are passive.} Rd8 {[%emt 0:19:51]} 19. Kb1 {[%emt 0:12:34]} Nc7 {[%emt 0:05:46]} (19... f6 $16) 20. Bf3 $18 {[%emt 0:00:28] Be4 is the strong threat.} b4 $2 {[%emt 0:07:03]} (20... Qd7 21. Qxe5 Rfe8) 21. Be4 {[%emt 0:04:59][%csl Ge4][%cal Rf5h7] This pair of bishops is nice.} g6 {[%emt 0:00:21]} 22. Qh3 {[%emt 0:00:13] hxg6 would kill now.} Qd7 {[%emt 0:08:54]} 23. hxg6 {[%emt 0:01:05]} Qxh3 {[%emt 0:00:03]} 24. gxh7+ {[%emt 0:12:29]} (24. Rxh3 fxg6 25. Bb6 Bd6 26. Bxc7 Bxc7 $11) 24... Kh8 {[%emt 0:00:30]} 25. Rxh3 {[%emt 0:00:30]} Ne6 {[%emt 0:00:30]} 26. Rg1 {[%emt 0:00:30]} Nf4 {[%emt 0:00:30]} 27. Bxf4 {[%emt 0:00:30]} exf4 {[%emt 0:00:30]} 28. Rh4 {[%emt 0:00:30]} Bd6 {[%emt 0:31:17]} 29. g6 {[%emt 0:03:02]} fxg6 {[%emt 0:00:00]} 30. Rxg6 {[%emt 0:00:07]} f3 {[%emt 0:00:00]} 31. Kc1 {[%emt 0:15:21]} Bc5 {[%emt 0:00:00]} 32. Rh2 {[%emt 0:01:32]} (32. Rxa6 Bxf2 33. Rh1 Bd4 $14) 32... a5 {[%emt 0:00:00]} 33. Kd2 {[%emt 0:02:45]} Bd4 {[%emt 0:00:00]} (33... Rf4 {was necessary.} 34. Re6 a4) 34. c3 {[%emt 0:00:45]} Be5 {[%emt 0:00:00] Threatens to win with ...Bf4+.} 35. Rh3 {[%emt 0:00:28]} Bf4+ {[%emt 0:00:00]} 36. Kd1 {[%emt 0:01:54]} Be5 {[%emt 0:00:00]} 37. Kc2 {[%emt 0:00:56]} Rf4 {[%emt 0:00:00]} 38. Bxf3 {[%emt 0:01:34]} Rdf8 {[%emt 0:00:00] [#]} 39. Kd2 $1 {[%emt 0:01:12]} R4f7 {[%emt 0:00:00]} (39... Rxf3 $2 {is the wrong capture.} 40. Rg8+ Rxg8 41. hxg8=Q+ (41. Rxf3 $2 Kxh7 42. Rf5 Re8 $19) (41. hxg8=R+ Kxg8 42. Rxf3 Kh7 $18) 41... Kxg8 42. Rxf3 $18) 40. d6 {[%emt 0:03:04][%cal Og6g8] Hoping for Rg8+!} Rf6 {[%emt 0:01:30]} 41. Rxf6 {[%emt 0:00:54]} Rxf6 {[%emt 0:00:09][%mdl 4096] Endgame. KRB-KRB} 42. Be4 {[%emt 0:01:24]} Rxd6+ {[%emt 0:00:24]} 43. Ke2 {[%emt 0:00:11]} Rb6 {[%emt 0:03:20]} (43... bxc3 {was worth a try.} 44. bxc3 Bg7) 44. Rh5 {[%emt 0:00:57]} Re6 {[%emt 0:00:54]} 45. f3 {[%emt 0:00:13]} Re8 {[%emt 0:00:37]} 46. Kd2 {[%emt 0:01:01] Strongly threatening Kc2.} Re7 $2 {[%emt 0:00:50]} (46... Bf4+ {might work better.} 47. Kc2 Rd8) 47. Rf5 {[%emt 0:00:40]} Re8 {[%emt 0:00:36] Prevents Rf8+} 48. Kc2 {[%emt 0:00:20]} Kg7 {[%emt 0:00:30]} 49. Rg5+ {[%emt 0:00:06]} Kh8 {[%emt 0:00:20]} 50. Rg6 {[%emt 0:00:18]} Rd8 {[%emt 0:00:38]} 51. Rc6 {[%emt 0:00:30]} Kg7 {[%emt 0:00:55]} 52. cxb4 {[%emt 0:00:49]} axb4 {[%emt 0:00:17]} 53. Rxc4 {[%emt 0:00:04]} Rb8 {[%emt 0:00:25]} 54. Kb3 {[%emt 0:00:13]} Bd6 {[%emt 0:00:19]} 55. Rd4 {[%emt 0:00:25]} Be7 {[%emt 0:00:43]} (55... Bf8 $142 56. Bg6 (56. Rd7+ Kh8 $18) 56... Bc5) 56. Rd7 {[%emt 0:00:22]} Kf6 {[%emt 0:00:36]} 57. Bd5 {[%emt 0:00:29][%cal Od7e7] Threatening mate with Rxe7!} Ke5 {[%emt 0:00:55]} 58. f4+ {[%emt 0:02:53] Weighted Error Value: White=0.23 (precise) /Black=0.39.  Mistake:       	White=1     	Black=8      Inaccurate:     	White=2     	Black=2      OK:         	White=24    	Black=15     Best:        	White=1     	Black=4      Strong:       	White=1     	---} 1-0

[Event "50th La Roda Open 2024"]
[Site "La Roda"]
[Date "2024.03.29"]
[Round "5.7"]
[White "Martinez Ramirez, Lennis"]
[Black "Alvarez Serrano, Carlos"]
[Result "1-0"]
[ECO "A18"]
[WhiteElo "2450"]
[BlackElo "2230"]
[Annotator "TA"]
[PlyCount "68"]
[EventDate "2024.03.27"]
[EventType "swiss"]
[EventCountry "ESP"]
[SourceTitle "playchess.com"]
[Source "ChessBase"]
[SourceQuality "1"]
[TimeControl "5400+30"]

{[%evp 13,68,12,35,12,22,27,4,19,18,30,18,13,20,11,16,0,15,12,18,0,0,0,0,0,0,0,0,2,0,5,0,0,0,0,78,87,113,97,120,120,110,15,14,19,23,16,15,14,15,8,19,0,0,0,0,0,8]} 1. c4 {[%emt 0:00:03]} Nf6 {[%emt 0:00:36]} 2. Nc3 {[%emt 0:00:11]} e6 {[%emt 0:00:46]} 3. e4 {[%emt 0:00:09]} d5 {[%emt 0:00:05]} 4. e5 {[%emt 0:00:06]} d4 {[%emt 0:00:13]} 5. exf6 {[%emt 0:00:04]} dxc3 {[%emt 0:00:11]} 6. bxc3 {[%emt 0:00:02]} Qxf6 {[%emt 0:00:14]} 7. d4 {[%emt 0:00:05]} b6 {[%emt 0:01:03]} 8. Be2 {[%emt 0:00:05]} Bb7 {[%emt 0:00:31]} 9. Bf3 {[%emt 0:00:01]} Bxf3 {[%emt 0:05:20]} 10. Nxf3 {[%emt 0:00:10]} Bd6 {[%emt 0:03:23]} 11. Qa4+ {[%emt 0:00:10]} c6 {[%emt 0:03:58]} 12. Bg5 {[%emt 0:00:05]} Qf5 {[%emt 0:04:26]} 13. O-O {[%emt 0:00:09][%cal Oc4c5]} O-O {[%emt 0:01:16]} 14. Rab1 {[%emt 0:00:02]} h6 {[%emt 0:17:51]} 15. Bh4 {[%emt 0:00:24]} Qd3 {[%emt 0:01:43]} 16. Bg3 {[%emt 0:11:10]} Bxg3 {[%emt 0:02:03]} 17. hxg3 {[%emt 0:00:02]} Qxc3 {[%emt 0:06:21]} 18. Rfc1 {[%emt 0:03:28]} Qd3 {[%emt 0:02:14]} 19. Rb3 {[%emt 0:05:24]} Qf5 {[%emt 0:03:16]} 20. Rxb6 {[%emt 0:00:16]} axb6 {[%emt 0:00:33]} 21. Qxa8 {[%emt 0:00:02]} c5 {[%emt 0:04:12]} 22. Qb7 {[%emt 0:04:13]} cxd4 {[%emt 0:00:57]} 23. Qxb6 {[%emt 0:00:35][%cal Oc4c5]} e5 {[%emt 0:01:59] [#]} (23... d3 $11) 24. Qb5 $1 $16 {[%emt 0:01:18] White is more active.} Nd7 {[%emt 0:13:38]} 25. Nxd4 {[%emt 0:00:27]} Qg4 {[%emt 0:02:06]} 26. Nc2 {[%emt 0:04:28] Threatens to win with Ne3.} Rb8 {[%emt 0:01:51][%cal Bf8b8,Bb8b5,Bb5a5][%mdl 32]} 27. Ne3 {[%emt 0:00:07]} (27. Qd5 $16) 27... Rxb5 $11 {[%emt 0:01:53]} 28. Nxg4 {[%emt 0:00:08][%mdl 4096] Endgame. KRN-KRN} Ra5 {[%emt 0:01:11]} 29. Rc2 {[%emt 0:00:28][%cal Oc4c5]} Kf8 {[%emt 0:00:22] The position is equal.} 30. Ne3 {[%emt 0:00:08]} Ke7 {[%emt 0:01:21]} 31. g4 {[%emt 0:04:48]} g6 {[%emt 0:00:14]} 32. g3 {[%emt 0:04:54]} Ke6 {[%emt 0:00:37]} 33. Rd2 {[%emt 0:00:07]} Nb6 {[%emt 0:00:44]} 34. Kg2 {[%emt 0:00:22]} Rc5 {[%emt 0:00:33][%mdl 32768] Weighted Error Value: White=0.09 (flawless) /Black=0.08 (flawless) .  Mistake:       	White=1     	Black=1      OK:         	White=11    	Black=14     Best:        	White=1     	Black=3      Strong:       	White=1     	---       . Loss on time!?} 1-0

[Event "50th La Roda Open 2024"]
[Site "La Roda"]
[Date "2024.03.29"]
[Round "5.8"]
[White "Sanchez Alvarez, Roberto Carlos"]
[Black "Dias, Ricardo Pedro Cruz"]
[Result "1-0"]
[ECO "A34"]
[WhiteElo "2407"]
[BlackElo "2216"]
[Annotator "TA"]
[PlyCount "69"]
[EventDate "2024.03.27"]
[EventType "swiss"]
[EventCountry "ESP"]
[SourceTitle "playchess.com"]
[Source "ChessBase"]
[SourceQuality "1"]
[TimeControl "5400+30"]

{[%evp 12,69,0,0,0,0,46,0,15,18,0,13,23,-36,-11,-11,-17,-9,-11,-11,-16,-15,28,31,20,45,35,12,107,84,198,225,207,213,209,204,214,216,268,239,239,233,243,214,381,366,378,364,397,380,530,522,570,580,580,552,1709,1682,1447,1429]} 1. c4 {[%emt 0:01:49]} c5 {[%emt 0:01:06]} 2. Nf3 {[%emt 0:01:21]} Nf6 {[%emt 0:00:06]} 3. Nc3 {[%emt 0:00:14]} d5 {[%emt 0:00:20]} 4. cxd5 {[%emt 0:00:29]} Nxd5 {[%emt 0:00:08]} 5. e4 {[%emt 0:00:12]} Nb4 {[%emt 0:00:09]} 6. Bc4 {[%emt 0:00:09]} Nd3+ {[%emt 0:01:43]} 7. Ke2 {[%emt 0:00:12]} Nf4+ {[%emt 0:00:04]} 8. Kf1 {[%emt 0:00:12] d4 would now be deadly.} Ne6 {[%emt 0:01:32]} (8... Nd3 $11) 9. h4 {[%emt 0:00:31]} (9. b4 $14 {feels stronger.}) 9... h5 {[%emt 0:02:28] The position is equal.} 10. d3 {[%emt 0:01:29]} Nc6 {[%emt 0:02:13]} 11. Be3 {[%emt 0:00:27]} Ned4 {[%emt 0:01:38]} 12. Ng5 {[%emt 0:05:51]} (12. Nb5 $11) 12... e6 {[%emt 0:01:31]} 13. Nb5 {[%emt 0:01:21]} Be7 {[%emt 0:04:16]} 14. Nxd4 {[%emt 0:02:33]} Nxd4 {[%emt 0:03:45]} 15. a3 {[%emt 0:02:23]} Bf6 {[%emt 0:10:38]} 16. Rc1 {[%emt 0:01:33][%cal Ba1c1,Bc1c5,Bc5c6,Bc6e6][%mdl 32]} Nc6 {[%emt 0:01:43]} 17. Bb5 {[%emt 0:34:14]} Bd7 {[%emt 0:06:50]} 18. Rxc5 {[%emt 0:15:08]} Bxb2 {[%emt 0:01:05]} 19. Qc2 {[%emt 0:01:04]} (19. Rh3 {keeps more tension.} a6 20. Rf3 axb5 21. Nxf7 Qxh4 22. Nxh8 Qh1+ 23. Ke2) 19... Bd4 {[%emt 0:10:14] [#]} (19... Bxa3 20. Qc3 Bxc5 21. Qxg7 $18) (19... Bf6 $1 $11) 20. Bxc6 $1 $16 {[%emt 0:02:56] White leaves nothing to chance now.} Bxc6 {[%emt 0:15:19]} (20... Bxc5 $16 21. Bxd7+ (21. Bxb7 $2 {is the wrong capture.} Bxe3 22. Bxa8 Bxg5 $19) 21... Qxd7 22. Qxc5 (22. Bxc5 Rc8 $15) 22... f6) 21. Rxc6 $18 {[%cal Oe3d4] Threatens to win with Bxd4!} Bxe3 {[#]} 22. Nxe6 {[%emt 0:06:06]} fxe6 {[%emt 0:12:05]} 23. Rxe6+ {[%emt 0:00:02]} Kd7 {[%emt 0:01:48]} 24. Re5 {[%emt 0:00:02] aiming for Rd5+.} Rh6 {[%emt 0:04:02]} 25. Rd5+ {[%emt 0:03:39]} Rd6 {[%emt 0:00:07]} 26. Rxd6+ {[%emt 0:02:29]} Kxd6 {[%emt 0:00:03]} 27. fxe3 {[%emt 0:00:11][%mdl 4096] Endgame. KQR-KQR} Qf6+ $2 {[%emt 0:00:30]} (27... Rc8 28. Qb1 Qa5) 28. Kg1 {[%emt 0:00:39]} Rf8 {[%emt 0:04:42]} 29. d4 {[%emt 0:00:40] Strongly threatening e5+.} Kd7 {[%emt 0:00:07][%cal Bd6d7,Bd7e6,Be6f5][%mdl 32]} 30. e5 {[%emt 0:00:55]} Qe7 {[%emt 0:03:41]} 31. Qa4+ {[%emt 0:04:29] White is clearly winning.} Ke6 {[%emt 0:00:06]} 32. Qb3+ {[%emt 0:04:38]} Kf5 {[%emt 0:00:02]} 33. Rh3 {[%emt 0:00:14] Black must now prevent Rg3.} Rc8 {[%emt 0:00:24]} 34. Qb1+ {[%emt 0:01:57]} Ke6 {[%emt 0:00:07]} 35. Rf3 {[%emt 0:00:06] Weighted Error Value: White=0.06 (flawless) /Black=0.40.  Mistake:       	White=2     	Black=4      Inaccurate:     	---       	Black=3      OK:         	White=15    	Black=7      Best:        	White=2     	Black=2      Strong:       	White=1     	---} 1-0